Workbook

Sheet Contents
B3: Contents | C3: Sheet Tab | D3: Description | E3: Author
B4: 1 | C4: Contents | D4: This sheet
B5: 2 | C5: Basic Exercise | D5: Exercise for Model
B6: 3 | C6: Verification | D6: Page to Make Checks
B7: 5 | C7: Exercise without Titles
B9: File Name: | D9: C:\Courses\Course Materials\1 Templates and Exercises Corporate Model\Exercises\Basic Model Exercise.xls
B11: Colour Codes
B13: Date | D13: 2008-11-08

Sheet Blank Exercise
A1: Basic Exercise | E1: TRUE
A2: Year | F2: 0 | G2: 1 | H2: 2 | I2: 3 | J2: 4 | K2: 5 | L2: 6
A4: Assumptions
B5: Operating
C6: EBITDA | F6: Growth Rate
D7: Base Case | E7: 1 | F7: 0.01 | G7: 150 | H7: =G7*(1+$F$7) -> 151.5 | I7: =H7*(1+$F$7) -> 153.015 | J7: =I7*(1+$F$7) -> 154.54515 | K7: =J7*(1+$F$7) -> 156.0906015 | L7: =K7*(1+$F$7) -> 157.6515075
D8: Low Case | E8: 2 | F8: -0.01 | G8: 150 | H8: =G8*(1+$F$8) -> 148.5 | I8: =H8*(1+$F$8) -> 147.015 | J8: =I8*(1+$F$8) -> 145.54485 | K8: =J8*(1+$F$8) -> 144.0894015 | L8: =K8*(1+$F$8) -> 142.6485075
D9: High Case | E9: 3 | F9: 0.02 | G9: 150 | H9: =G9*(1+$F$9) -> 153 | I9: =H9*(1+$F$9) -> 156.06 | J9: =I9*(1+$F$9) -> 159.1812 | K9: =J9*(1+$F$9) -> 162.364824 | L9: =K9*(1+$F$9) -> 165.6121205
D10: =INDEX(titles,scenario) -> Base Case | F10: 1 | G10: =INDEX(G7:G9,scenario) -> 150 | H10: 151.5 | I10: 153.015 | J10: 154.54515 | K10: 156.0906015 | L10: 157.6515075
C12: Capital Expenditures | G12: 50 | H12: 200 | I12: 100 | J12: 50 | K12: =J12 -> 50 | L12: 50
C13: Working Captial Percent of EBITDA | G13: 0.25 | H13: 0.25 | I13: 0.25 | J13: 0.25 | K13: 0.25 | L13: 0.25
C14: Operating Cash As Percent of EBITDA | G14: 0.04 | H14: 0.04 | I14: 0.04 | J14: 0.04 | K14: 0.04 | L14: 0.04
C16: Depreciation Rate | G16: 0.1 | H16: 0.1 | I16: 0.1 | J16: 0.1 | K16: 0.1 | L16: 0.1
C17: Income Tax Rate | G17: 0.3 | H17: 0.3 | I17: 0.3 | J17: 0.3 | K17: 0.3 | L17: 0.3
B19: Financing
C20: Interest Income Rate | G20: 0.03 | H20: 0.035 | I20: 0.04 | J20: 0.04 | K20: 0.04 | L20: 0.04
C21: Interest Expense Rate | G21: 0.05 | H21: =G21 -> 0.05 | I21: 0.05 | J21: 0.05 | K21: 0.05 | L21: 0.05
C22: Dividend Payout Ratio | G22: 0.5 | H22: 0.5 | I22: 0.5 | J22: 0.5 | K22: 0.5 | L22: 0.5
C23: Common Equity Issues/Buybacks | G23: 0 | H23: 0 | I23: 100 | J23: 0 | K23: -200 | L23: 0
C24: Future Share Price | G24: 10 | H24: 10 | I24: 10 | J24: 10 | K24: 10 | L24: 10
C25: Minority Interest Percent | G25: =(F45/(F45+F46)) -> 0.1772151899 | H25: =G25 -> 0.1772151899 | I25: =H25 -> 0.1772151899 | J25: =I25 -> 0.1772151899 | K25: =J25 -> 0.1772151899 | L25: =K25 -> 0.1772151899
B27: Long-Term Debt Details
C28: Issue 1
D29: Repayment | F29: =SUM(G29:K29) -> 75 | G29: 25 | H29: 25 | I29: 25 | J29: 0
D30: Interest Rate on Long-term Debt | G30: 0.065 | H30: 0.065 | I30: 0.065 | J30: 0.065 | K30: 0.065
C32: Issue 2
D33: Repayment | F33: =SUM(G33:K33) -> 100 | G33: 0 | H33: 0 | I33: 0 | J33: 50 | K33: 50
D34: Interest Rate on Long-term Debt | G34: 0.08 | H34: 0.08 | I34: 0.08 | J34: 0.08 | K34: 0.08
A36: Initial Balance Sheet
B37: Cash | F37: 50
B38: Working Capital | F38: 20
B39: Plant Property and Equipment | F39: 600
B40: Accumulated Depreciation | F40: -100
C41: Total Assets | F41: =SUM(F37:F40) -> 570
B43: Long-Term Debt | F43: =F29+F33 -> 175
B44: Short-Term Debt | F44: 0
B45: Minority Interest Percent | F45: 70
B46: Equity | F46: 325
C47: Total Liabilities and Capital | F47: =SUM(F43:F46) -> 570
B49: Shares | F49: 40
B51: Initial Balance Sheet Test | F51: =F47-F41=0 -> TRUE
A53: Working Analysis
B54: EBITDA
B55: Capital Expenditures
A57: Working Capital Analysis
C58: EBITDA | E58: From Input Above
C59: Working Capital Percent | E59: From Input Above
C60: Working Capital Balance | E60: EBITDA x Percent
C61: Change in Working Capital | E61: Change in Balance
A63: Fixed Assets
B64: Net Plant
C65: Opening Balance | E65: Opening = Prior Closing
C66: Add: Capital Expenditure | E66: From Input
C67: Less: Depreciation
C68: Closing Balance | E68: Initial from B/S; Later Sum
C70: Depreciation Rate | E70: From Input
C71: Depreciation Expense (Ending Balance) | E71: Closing x Depreciation Rate
A73: Debt Analysis
B74: Debt Balance
C75: Issue 1
D76: Opening Balance | E76: Opening = Prior Closing
D77: Less: Repayments | E77: From Input
D78: Closing Balance | E78: Initial from B/S; Later Sum
D80: Interest Rate | E80: From Input
D81: Interest Expense | E81: Average Balance x Rate
C83: Issue 2
D84: Opening Balance | E84: Opening = Prior Closing
D85: Less: Repayments | E85: From Input
D86: Closing Balance | E86: Initial from B/S; Later Sum
D88: Interest Rate | E88: From Input
D89: Interest Expense | E89: Average Balance x Rate
B91: Aggregate Balance
D92: Total Interest Expense | E92: Total of Issue 1 and Issue 2
D93: Total Closing Balance | E93: Total of Issue 1 and Issue 2
D94: Total Repayments | E94: Total of Issue 1 and Issue 2
A96: Cash LESS Short-term Debt Balance
B97: Minimum Cash Balance
C98: EBITDA
C99: Cash as Percent of EBITDA
C100: Minimum Cash Balance
C102: Opening Balance | E102: Prior Balance
C103: Add: Net Cash Flow | E103: From Cash Flow Statement
C104: Closing Balance | E104: Opeining + Cash Flow
C106: Cash Balance | E106: Max of Closing Balance or Min
C107: Interest Income | E107: Average of Cash x Rate
C109: Short-term Debt Balance | E109: Max of Neg Closing Balance or Zero
C110: Interest Expense | E110: Average of Debt x Rate
A112: Income Statement
B113: EBITDA | E113: From Above, Sensitivity
C114: Less: Depreciation Expense | E114: From Depreciation Analysis Above
B115: EBIT | E115: EBITDA - Depreciation
C116: Less: Short-term Interest | E116: From End of Model, Leave until Done
C117: Less: Long-term Interest | E117: From Debt Analysis Above
C118: Plus: Interest Income | E118: From End of Model, Leave until Done
B119: EBT | E119: Subtotal from Above
C120: Less: Income Taxes | E120: EBT x Tax rate
B121: Earnings Before Minority Interest | E121: Subtotal from Above
C122: Less: Minority Interest | E122: Minority Interest Percent x Earning b/4 Min
C123: Net Income | E123: EBIT - Interest + Interest Income
A125: Cash Flow Statement
B126: EBITDA | E126: From Income Statement
C127: Less: Taxes Paid | E127: From Income Statement
C128: Less: Working Capital Change | E128: From Working
B129: Cash from Operations | E129: Net Income + Depreciation
C130: Less: Capital Expenditures | E130: From Above
B131: Cash Before Financing | E131: Operations - Capital Expenditures
C132: Less: Interest Expense - long-term | E132: From Above
C133: Less: Interest Expense - short-term | E133: From Above
C134: Add: Interest Income | E134: From Above
C135: Less: Debt Repayment | E135: From Above
C136: Less: Dividends to Common | E136: Dividend Payout x Net Income
C137: Less: Dividends to Minority | E137: Dividend Payout x Minority Income
C138: Add: Equity Financing | E138: Input
C139: Net Cash Flow | E139: Cash Flow b/4 fin - Repayment - Div
A141: Shares and EPS
B142: Share Balance
C143: Opening Balance
C144: Add: New Shares: Equity Financing/Price
C145: Closing Balance
B147: Average Balance
B148: Earnings per Share
A151: Balance Sheet
B152: Equity Balance
C153: Opening Balance
C154: Add Net Income
C155: Add New Issues
C156: Less Dividends
C157: Closing Balance
B159: Minority Balance
C160: Opening Balance
C161: Add Net Income
C162: Add New Issues
C163: Less Dividends
C164: Closing Balance
B166: Cash | E166: From End of Model, Leave until Done
B167: Working Capital
B168: Net Plant | E168: Prior Balance + Depreciation
C169: Total Assets | E169: Cash + Plant - Acc Dep
B171: Long-Term Debt | E171: From Debt Balance Above
B172: Short-Term Debt | E172: From End of Model, Leave until Done
B173: Minority Equity | E173: Retained Earning-Prior+NI-Div
B174: Equity | E174: Retained Earning-Prior+NI-Div
C175: Total Liabilities and Capital | E175: Sum of Above
B177: Difference | E177: Assets = Capital
B178: Annual Test | E178: =AND(F178:K178) -> 
B179: Aggregate Test
B198: Return on Equity
B200: Debt to Capital
B202: Target Debt To Capital
B204: Earnings per Share
B206: DCF
C207: EBITDA
C208: Less: WC Changes
C209: Less: Capital Expenditures
D210: Total
B212: Growth
B213: WACC
B215: Terminal Cash Flow
B216: Total Cash Flow
B217: PV of Free Cash Flow
B218: Net Debt
B219: Equity Value
B221: Value per Share
B223: PE
B235: Fixed Interest Expense
B236: Computed Interest Expesse
B237: Difference | M237: 0 | N237: 0 | O237: 0 | P237: 0 | Q237: 0 | R237: 0 | S237: 0 | T237: 0 | U237: 0 | V237: 0 | W237: 0 | X237: 0 | Y237: 0 | Z237: 0 | AA237: 0 | AB237: 0 | AC237: 0 | AD237: 0 | AE237: 0 | AF237: 0 | AG237: 0 | AH237: 0 | AI237: 0 | AJ237: 0 | AK237: 0 | AL237: 0 | AM237: 0 | AN237: 0 | AO237: 0 | AP237: 0 | AQ237: 0 | AR237: 0 | AS237: 0 | AT237: 0 | AU237: 0 | AV237: 0 | AW237: 0 | AX237: 0 | AY237: 0 | AZ237: 0 | BA237: 0 | BB237: 0 | BC237: 0 | BD237: 0 | BE237: 0 | BF237: 0 | BG237: 0 | BH237: 0 | BI237: 0 | BJ237: 0 | BK237: 0 | BL237: 0 | BM237: 0 | BN237: 0 | BO237: 0 | BP237: 0 | BQ237: 0 | BR237: 0 | BS237: 0 | BT237: 0 | BU237: 0 | BV237: 0 | BW237: 0 | BX237: 0 | BY237: 0 | BZ237: 0 | CA237: 0 | CB237: 0 | CC237: 0 | CD237: 0 | CE237: 0 | CF237: 0 | CG237: 0 | CH237: 0 | CI237: 0 | CJ237: 0 | CK237: 0 | CL237: 0 | CM237: 0 | CN237: 0 | CO237: 0 | CP237: 0 | CQ237: 0 | CR237: 0 | CS237: 0 | CT237: 0 | CU237: 0 | CV237: 0 | CW237: 0 | CX237: 0 | CY237: 0 | CZ237: 0 | DA237: 0 | DB237: 0 | DC237: 0 | DD237: 0 | DE237: 0 | DF237: 0 | DG237: 0 | DH237: 0 | DI237: 0 | DJ237: 0 | DK237: 0 | DL237: 0 | DM237: 0 | DN237: 0 | DO237: 0 | DP237: 0 | DQ237: 0 | DR237: 0 | DS237: 0 | DT237: 0 | DU237: 0 | DV237: 0 | DW237: 0 | DX237: 0 | DY237: 0 | DZ237: 0 | EA237: 0 | EB237: 0 | EC237: 0 | ED237: 0 | EE237: 0 | EF237: 0 | EG237: 0 | EH237: 0 | EI237: 0 | EJ237: 0 | EK237: 0 | EL237: 0 | EM237: 0 | EN237: 0 | EO237: 0 | EP237: 0 | EQ237: 0 | ER237: 0 | ES237: 0 | ET237: 0 | EU237: 0 | EV237: 0 | EW237: 0 | EX237: 0 | EY237: 0 | EZ237: 0 | FA237: 0 | FB237: 0 | FC237: 0 | FD237: 0 | FE237: 0 | FF237: 0 | FG237: 0 | FH237: 0 | FI237: 0 | FJ237: 0 | FK237: 0 | FL237: 0 | FM237: 0 | FN237: 0 | FO237: 0 | FP237: 0 | FQ237: 0 | FR237: 0 | FS237: 0 | FT237: 0 | FU237: 0 | FV237: 0 | FW237: 0 | FX237: 0 | FY237: 0 | FZ237: 0 | GA237: 0 | GB237: 0 | GC237: 0 | GD237: 0 | GE237: 0 | GF237: 0 | GG237: 0 | GH237: 0 | GI237: 0 | GJ237: 0 | GK237: 0 | GL237: 0 | GM237: 0 | GN237: 0 | GO237: 0 | GP237: 0 | GQ237: 0 | GR237: 0 | GS237: 0 | GT237: 0 | GU237: 0 | GV237: 0 | GW237: 0 | GX237: 0 | GY237: 0 | GZ237: 0 | HA237: 0 | HB237: 0 | HC237: 0 | HD237: 0 | HE237: 0 | HF237: 0 | HG237: 0 | HH237: 0 | HI237: 0 | HJ237: 0 | HK237: 0 | HL237: 0 | HM237: 0 | HN237: 0 | HO237: 0 | HP237: 0 | HQ237: 0 | HR237: 0 | HS237: 0 | HT237: 0 | HU237: 0 | HV237: 0 | HW237: 0 | HX237: 0 | HY237: 0 | HZ237: 0 | IA237: 0 | IB237: 0 | IC237: 0 | ID237: 0 | IE237: 0 | IF237: 0 | IG237: 0 | IH237: 0 | II237: 0 | IJ237: 0 | IK237: 0 | IL237: 0 | IM237: 0 | IN237: 0 | IO237: 0 | IP237: 0 | IQ237: 0 | IR237: 0 | IS237: 0 | IT237: 0 | IU237: 0 | IV237: 0
B239: Fixed Interest Income
B240: Computed Interest Income
B241: Difference | M241: 0 | N241: 0 | O241: 0 | P241: 0 | Q241: 0 | R241: 0 | S241: 0 | T241: 0 | U241: 0 | V241: 0 | W241: 0 | X241: 0 | Y241: 0 | Z241: 0 | AA241: 0 | AB241: 0 | AC241: 0 | AD241: 0 | AE241: 0 | AF241: 0 | AG241: 0 | AH241: 0 | AI241: 0 | AJ241: 0 | AK241: 0 | AL241: 0 | AM241: 0 | AN241: 0 | AO241: 0 | AP241: 0 | AQ241: 0 | AR241: 0 | AS241: 0 | AT241: 0 | AU241: 0 | AV241: 0 | AW241: 0 | AX241: 0 | AY241: 0 | AZ241: 0 | BA241: 0 | BB241: 0 | BC241: 0 | BD241: 0 | BE241: 0 | BF241: 0 | BG241: 0 | BH241: 0 | BI241: 0 | BJ241: 0 | BK241: 0 | BL241: 0 | BM241: 0 | BN241: 0 | BO241: 0 | BP241: 0 | BQ241: 0 | BR241: 0 | BS241: 0 | BT241: 0 | BU241: 0 | BV241: 0 | BW241: 0 | BX241: 0 | BY241: 0 | BZ241: 0 | CA241: 0 | CB241: 0 | CC241: 0 | CD241: 0 | CE241: 0 | CF241: 0 | CG241: 0 | CH241: 0 | CI241: 0 | CJ241: 0 | CK241: 0 | CL241: 0 | CM241: 0 | CN241: 0 | CO241: 0 | CP241: 0 | CQ241: 0 | CR241: 0 | CS241: 0 | CT241: 0 | CU241: 0 | CV241: 0 | CW241: 0 | CX241: 0 | CY241: 0 | CZ241: 0 | DA241: 0 | DB241: 0 | DC241: 0 | DD241: 0 | DE241: 0 | DF241: 0 | DG241: 0 | DH241: 0 | DI241: 0 | DJ241: 0 | DK241: 0 | DL241: 0 | DM241: 0 | DN241: 0 | DO241: 0 | DP241: 0 | DQ241: 0 | DR241: 0 | DS241: 0 | DT241: 0 | DU241: 0 | DV241: 0 | DW241: 0 | DX241: 0 | DY241: 0 | DZ241: 0 | EA241: 0 | EB241: 0 | EC241: 0 | ED241: 0 | EE241: 0 | EF241: 0 | EG241: 0 | EH241: 0 | EI241: 0 | EJ241: 0 | EK241: 0 | EL241: 0 | EM241: 0 | EN241: 0 | EO241: 0 | EP241: 0 | EQ241: 0 | ER241: 0 | ES241: 0 | ET241: 0 | EU241: 0 | EV241: 0 | EW241: 0 | EX241: 0 | EY241: 0 | EZ241: 0 | FA241: 0 | FB241: 0 | FC241: 0 | FD241: 0 | FE241: 0 | FF241: 0 | FG241: 0 | FH241: 0 | FI241: 0 | FJ241: 0 | FK241: 0 | FL241: 0 | FM241: 0 | FN241: 0 | FO241: 0 | FP241: 0 | FQ241: 0 | FR241: 0 | FS241: 0 | FT241: 0 | FU241: 0 | FV241: 0 | FW241: 0 | FX241: 0 | FY241: 0 | FZ241: 0 | GA241: 0 | GB241: 0 | GC241: 0 | GD241: 0 | GE241: 0 | GF241: 0 | GG241: 0 | GH241: 0 | GI241: 0 | GJ241: 0 | GK241: 0 | GL241: 0 | GM241: 0 | GN241: 0 | GO241: 0 | GP241: 0 | GQ241: 0 | GR241: 0 | GS241: 0 | GT241: 0 | GU241: 0 | GV241: 0 | GW241: 0 | GX241: 0 | GY241: 0 | GZ241: 0 | HA241: 0 | HB241: 0 | HC241: 0 | HD241: 0 | HE241: 0 | HF241: 0 | HG241: 0 | HH241: 0 | HI241: 0 | HJ241: 0 | HK241: 0 | HL241: 0 | HM241: 0 | HN241: 0 | HO241: 0 | HP241: 0 | HQ241: 0 | HR241: 0 | HS241: 0 | HT241: 0 | HU241: 0 | HV241: 0 | HW241: 0 | HX241: 0 | HY241: 0 | HZ241: 0 | IA241: 0 | IB241: 0 | IC241: 0 | ID241: 0 | IE241: 0 | IF241: 0 | IG241: 0 | IH241: 0 | II241: 0 | IJ241: 0 | IK241: 0 | IL241: 0 | IM241: 0 | IN241: 0 | IO241: 0 | IP241: 0 | IQ241: 0 | IR241: 0 | IS241: 0 | IT241: 0 | IU241: 0 | IV241: 0
B244: Taget
B246: Actual

Sheet Completed Exercise
A1: Basic Exercise | E1: FALSE
A2: Year | F2: 0 | G2: 1 | H2: 2 | I2: 3 | J2: 4 | K2: 5 | L2: 6
A4: Assumptions
B5: Operating
C6: EBITDA | F6: Growth Rate
D7: Base Case | E7: 1 | F7: 0.01 | G7: 150 | H7: =G7*(1+$F$7) -> 151.5 | I7: =H7*(1+$F$7) -> 153.015 | J7: =I7*(1+$F$7) -> 154.54515 | K7: =J7*(1+$F$7) -> 156.0906015 | L7: =K7*(1+$F$7) -> 157.6515075
D8: Low Case | E8: 2 | F8: -0.01 | G8: 150 | H8: =G8*(1+$F$8) -> 148.5 | I8: =H8*(1+$F$8) -> 147.015 | J8: =I8*(1+$F$8) -> 145.54485 | K8: =J8*(1+$F$8) -> 144.0894015 | L8: =K8*(1+$F$8) -> 142.6485075
D9: High Case | E9: 3 | F9: 0.02 | G9: 150 | H9: =G9*(1+$F$9) -> 153 | I9: =H9*(1+$F$9) -> 156.06 | J9: =I9*(1+$F$9) -> 159.1812 | K9: =J9*(1+$F$9) -> 162.364824 | L9: =K9*(1+$F$9) -> 165.6121205
D10: =INDEX(titles,scenario) -> Base Case | F10: 1 | G10: =INDEX(G7:G9,scenario) -> 150 | H10: 151.5 | I10: 153.015 | J10: 154.54515 | K10: 156.0906015 | L10: 157.6515075
C12: Capital Expenditures | G12: 50 | H12: 200 | I12: 100 | J12: 50 | K12: =J12 -> 50 | L12: 50
C13: Working Captial Percent of EBITDA | G13: 0.25 | H13: 0.25 | I13: 0.25 | J13: 0.25 | K13: 0.25 | L13: 0.25
C14: Operating Cash As Percent of EBITDA | G14: 0.04 | H14: 0.04 | I14: 0.04 | J14: 0.04 | K14: 0.04 | L14: 0.04
C16: Depreciation Rate | G16: 0.1 | H16: 0.1 | I16: 0.1 | J16: 0.1 | K16: 0.1 | L16: 0.1
C17: Income Tax Rate | G17: 0.3 | H17: 0.3 | I17: 0.3 | J17: 0.3 | K17: 0.3 | L17: 0.3
B19: Financing
C20: Interest Income Rate | G20: 0.03 | H20: 0.035 | I20: 0.04 | J20: 0.04 | K20: 0.04 | L20: 0.04
C21: Interest Expense Rate | G21: 0.05 | H21: =G21 -> 0.05 | I21: 0.05 | J21: 0.05 | K21: 0.05 | L21: 0.05
C22: Dividend Payout Ratio | G22: 0.5 | H22: 0.5 | I22: 0.5 | J22: 0.5 | K22: 0.5 | L22: 0.5
C23: Common Equity Issues/Buybacks | G23: 0 | H23: 0 | I23: 100 | J23: 0 | K23: -200 | L23: 0
C24: Future Share Price | G24: 10 | H24: 10 | I24: 10 | J24: 10 | K24: 10 | L24: 10
C25: Minority Interest Percent | G25: =(F45/(F45+F46)) -> 0.1772151899 | H25: =G25 -> 0.1772151899 | I25: =H25 -> 0.1772151899 | J25: =I25 -> 0.1772151899 | K25: =J25 -> 0.1772151899 | L25: =K25 -> 0.1772151899
B27: Long-Term Debt Details
C28: Issue 1
D29: Repayment | F29: =SUM(G29:K29) -> 75 | G29: 25 | H29: 25 | I29: 25 | J29: 0
D30: Interest Rate on Long-term Debt | G30: 0.065 | H30: 0.065 | I30: 0.065 | J30: 0.065 | K30: 0.065
C32: Issue 2
D33: Repayment | F33: =SUM(G33:K33) -> 100 | G33: 0 | H33: 0 | I33: 0 | J33: 50 | K33: 50
D34: Interest Rate on Long-term Debt | G34: 0.08 | H34: 0.08 | I34: 0.08 | J34: 0.08 | K34: 0.08
A36: Initial Balance Sheet
B37: Cash | F37: 50
B38: Working Capital | F38: 20
B39: Plant Property and Equipment | F39: 600
B40: Accumulated Depreciation | F40: -100
C41: Total Assets | F41: =SUM(F37:F40) -> 570
B43: Long-Term Debt | F43: =F29+F33 -> 175
B44: Short-Term Debt | F44: 0
B45: Minority Interest Percent | F45: 70
B46: Equity | F46: 325
C47: Total Liabilities and Capital | F47: =SUM(F43:F46) -> 570
B49: Shares | F49: 40
B51: Initial Balance Sheet Test | F51: =F47-F41=0 -> TRUE
A53: Working Analysis
B54: EBITDA | G54: =G10 -> 150 | H54: =H10 -> 151.5 | I54: 153.015 | J54: 154.54515 | K54: 156.0906015
B55: Capital Expenditures | G55: =G12 -> 50 | H55: =H12 -> 200 | I55: 100 | J55: 50 | K55: 50
A57: Working Capital Analysis
C58: EBITDA | E58: From Input Above | G58: =G54 -> 150 | H58: =H54 -> 151.5 | I58: 153.015 | J58: 154.54515 | K58: 156.0906015
C59: Working Capital Percent | E59: From Input Above | G59: =G13 -> 0.25 | H59: =H13 -> 0.25 | I59: 0.25 | J59: 0.25 | K59: 0.25
C60: Working Capital Balance | E60: EBITDA x Percent | F60: =F38 -> 20 | G60: =G58*G59 -> 37.5 | H60: =H58*H59 -> 37.875 | I60: 38.25375 | J60: 38.6362875 | K60: 39.02265038
C61: Change in Working Capital | E61: Change in Balance | G61: =G60-F60 -> 17.5 | H61: =H60-G60 -> 0.375 | I61: 0.37875 | J61: 0.3825375 | K61: 0.386362875
A63: Fixed Assets
B64: Net Plant
C65: Opening Balance | E65: Opening = Prior Closing | G65: =F68 -> 500 | H65: =G68 -> 500 | I65: 650 | J65: 685 | K65: 666.5
C66: Add: Capital Expenditure | E66: From Input | G66: =G55 -> 50 | H66: =H55 -> 200 | I66: 100 | J66: 50 | K66: 50
C67: Less: Depreciation | G67: =G71 -> 50 | H67: =H71 -> 50 | I67: 65 | J67: 68.5 | K67: 66.65
C68: Closing Balance | E68: Initial from B/S; Later Sum | F68: =F39+F40 -> 500 | G68: =G65+G66-G67 -> 500 | H68: =H65+H66-H67 -> 650 | I68: 685 | J68: 666.5 | K68: 649.85
C70: Depreciation Rate | E70: From Input | G70: =G16 -> 0.1 | H70: =H16 -> 0.1 | I70: 0.1 | J70: 0.1 | K70: 0.1
C71: Depreciation Expense (Ending Balance) | E71: Closing x Depreciation Rate | G71: =G65*G70 -> 50 | H71: =H65*H70 -> 50 | I71: 65 | J71: 68.5 | K71: 66.65
A73: Debt Analysis
B74: Debt Balance
C75: Issue 1
D76: Opening Balance | E76: Opening = Prior Closing | G76: =F78 -> 75 | H76: =G78 -> 50 | I76: 25 | J76: 0 | K76: 0
D77: Less: Repayments | E77: From Input | G77: =G29 -> 25 | H77: =H29 -> 25 | I77: 25 | J77: 0 | K77: 0
D78: Closing Balance | E78: Initial from B/S; Later Sum | F78: =F29 -> 75 | G78: =G76-G77 -> 50 | H78: =H76-H77 -> 25 | I78: 0 | J78: 0 | K78: 0
D80: Interest Rate | E80: From Input | G80: =G30 -> 0.065 | H80: =H30 -> 0.065 | I80: 0.065 | J80: 0.065 | K80: 0.065
D81: Interest Expense | E81: Average Balance x Rate | G81: =AVERAGE(G78,G76)*G80 -> 4.0625 | H81: =AVERAGE(H78,H76)*H80 -> 2.4375 | I81: 0.8125 | J81: 0 | K81: 0
C83: Issue 2
D84: Opening Balance | E84: Opening = Prior Closing | G84: =F86 -> 100 | H84: =G86 -> 100 | I84: 100 | J84: 100 | K84: 50
D85: Less: Repayments | E85: From Input | G85: =G33 -> 0 | H85: =H33 -> 0 | I85: 0 | J85: 50 | K85: 50
D86: Closing Balance | E86: Initial from B/S; Later Sum | F86: =F33 -> 100 | G86: =G84-G85 -> 100 | H86: =H84-H85 -> 100 | I86: 100 | J86: 50 | K86: 0
D88: Interest Rate | E88: From Input | G88: =G34 -> 0.08 | H88: =H34 -> 0.08 | I88: 0.08 | J88: 0.08 | K88: 0.08
D89: Interest Expense | E89: Average Balance x Rate | G89: =AVERAGE(G86,G84)*G88 -> 8 | H89: =AVERAGE(H86,H84)*H88 -> 8 | I89: 8 | J89: 6 | K89: 2
B91: Aggregate Balance
D92: Total Interest Expense | E92: Total of Issue 1 and Issue 2 | G92: =G89+G81 -> 12.0625 | H92: =H89+H81 -> 10.4375 | I92: 8.8125 | J92: 6 | K92: 2
D93: Total Closing Balance | E93: Total of Issue 1 and Issue 2 | F93: =F86+F78 -> 175 | G93: =G86+G78 -> 150 | H93: =H86+H78 -> 125 | I93: 100 | J93: 50 | K93: 0
D94: Total Repayments | E94: Total of Issue 1 and Issue 2 | G94: =G85+G77 -> 25 | H94: =H85+H77 -> 25 | I94: 25 | J94: 50 | K94: 50
A96: Cash LESS Short-term Debt Balance
B97: Minimum Cash Balance
C98: EBITDA | G98: =G58 -> 150 | H98: =H58 -> 151.5 | I98: 153.015 | J98: 154.54515 | K98: 156.0906015
C99: Cash as Percent of EBITDA | G99: =G14 -> 0.04 | H99: =H14 -> 0.04 | I99: 0.04 | J99: 0.04 | K99: 0.04
C100: Minimum Cash Balance | G100: =G98*G99 -> 6 | H100: =H98*H99 -> 6.06 | I100: 6.1206 | J100: 6.181806 | K100: 6.24362406
C102: Opening Balance | E102: Prior Balance | G102: =F104 -> 50 | H102: =G104 -> 35.22189903 | I102: -111.5454134 | J102: -49.12219299 | K102: -56.97433165
C103: Add: Net Cash Flow | E103: From Cash Flow Statement | G103: =G139 -> -14.77810097 | H103: =H139 -> -146.7673124 | I103: 62.42322039 | J103: -7.85213866 | K103: -207.5355637
C104: Closing Balance | E104: Opeining + Cash Flow | F104: =F37-F44 -> 50 | G104: =G102+G103 -> 35.22189903 | H104: =H102+H103 -> -111.5454134 | I104: -49.12219299 | J104: -56.97433165 | K104: -264.5098953
C106: Cash Balance | E106: Max of Closing Balance or Min | F106: =F37 -> 50 | G106: =MAX(G104,G100) -> 35.22189903 | H106: =MAX(H104,H100) -> 6.06 | I106: 6.1206 | J106: 6.181806 | K106: 6.24362406
C107: Interest Income | E107: Average of Cash x Rate | G107: =F106*G20 -> 1.5 | H107: =G106*H20 -> 1.232766466 | I107: 0.2424 | J107: 0.244824 | K107: 0.24727224
C109: Short-term Debt Balance | E109: Max of Neg Closing Balance or Zero | F109: =F44 -> 0 | G109: =MAX(-G104+G100,0) -> 0 | H109: =MAX(-H104+H100,0) -> 117.6054134 | I109: =MAX(-I104+I100,0) -> 55.24279299 | J109: 63.15613765 | K109: 270.7535194
C110: Interest Expense | E110: Average of Debt x Rate | G110: =F109*G21 -> 0 | H110: =G109*H21 -> 0 | I110: 5.880270669 | J110: 2.762139649 | K110: 3.157806883
A112: Income Statement
B113: EBITDA | E113: From Above, Sensitivity | G113: =G98 -> 150 | H113: =H98 -> 151.5 | I113: 153.015 | J113: 154.54515 | K113: 156.0906015
C114: Less: Depreciation Expense | E114: From Depreciation Analysis Above | G114: =G71 -> 50 | H114: =H71 -> 50 | I114: 65 | J114: 68.5 | K114: 66.65
B115: EBIT | E115: EBITDA - Depreciation | G115: =G113-G114 -> 100 | H115: =H113-H114 -> 101.5 | I115: 88.015 | J115: 86.04515 | K115: 89.4406015
C116: Less: Short-term Interest | E116: From End of Model, Leave until Done | G116: =G110 -> 0 | H116: =H110 -> 0 | I116: 5.880270669 | J116: 2.762139649 | K116: 3.157806883
C117: Less: Long-term Interest | E117: From Debt Analysis Above | G117: =G92 -> 12.0625 | H117: =H92 -> 10.4375 | I117: 8.8125 | J117: 6 | K117: 2
C118: Plus: Interest Income | E118: From End of Model, Leave until Done | G118: =G107 -> 1.5 | H118: =H107 -> 1.232766466 | I118: 0.2424 | J118: 0.244824 | K118: 0.24727224
B119: EBT | E119: Subtotal from Above | G119: =G115-G116-G117+G118 -> 89.4375 | H119: =H115-H116-H117+H118 -> 92.29526647 | I119: 73.56462933 | J119: 77.52783435 | K119: 84.53006686
C120: Less: Income Taxes | E120: EBT x Tax rate | G120: =MAX(G119*G17,0) -> 26.83125 | H120: =MAX(H119*H17,0) -> 27.68857994 | I120: 22.0693888 | J120: 23.25835031 | K120: 25.35902006
B121: Earnings Before Minority Interest | E121: Subtotal from Above | G121: =G119-G120 -> 62.60625 | H121: =H119-H120 -> 64.60668653 | I121: 51.49524053 | J121: 54.26948405 | K121: 59.1710468
C122: Less: Minority Interest | E122: Minority Interest Percent x Earning b/4 Min | G122: =G121*G25 -> 11.09477848 | H122: =H121*H25 -> 11.44928622 | I122: 9.125738828 | J122: 9.617376919 | K122: 10.48600829
C123: Net Income | E123: EBIT - Interest + Interest Income | G123: =G121-G122 -> 51.51147152 | H123: =H121-H122 -> 53.15740031 | I123: 42.3695017 | J123: 44.65210713 | K123: 48.68503851
A125: Cash Flow Statement
B126: EBITDA | E126: From Income Statement | G126: =G113 -> 150 | H126: =H113 -> 151.5 | I126: 153.015 | J126: 154.54515 | K126: 156.0906015
C127: Less: Taxes Paid | E127: From Income Statement | G127: =G120 -> 26.83125 | H127: =H120 -> 27.68857994 | I127: 22.0693888 | J127: 23.25835031 | K127: 25.35902006
C128: Less: Working Capital Change | E128: From Working | G128: =G61 -> 17.5 | H128: =H61 -> 0.375 | I128: 0.37875 | J128: 0.3825375 | K128: 0.386362875
B129: Cash from Operations | E129: Net Income + Depreciation | G129: =G126-G127-G128 -> 105.66875 | H129: =H126-H127-H128 -> 123.4364201 | I129: 130.5668612 | J129: 130.9042622 | K129: 130.3452186
C130: Less: Capital Expenditures | E130: From Above | G130: =G55 -> 50 | H130: =H55 -> 200 | I130: 100 | J130: 50 | K130: 50
B131: Cash Before Financing | E131: Operations - Capital Expenditures | G131: =G129-G130 -> 55.66875 | H131: =H129-H130 -> -76.56357994 | I131: 30.5668612 | J131: 80.90426219 | K131: 80.34521857
C132: Less: Interest Expense - long-term | E132: From Above | G132: =G117 -> 12.0625 | H132: =H117 -> 10.4375 | I132: 8.8125 | J132: 6 | K132: 2
C133: Less: Interest Expense - short-term | E133: From Above | G133: =G116 -> 0 | H133: =H116 -> 0 | I133: 5.880270669 | J133: 2.762139649 | K133: 3.157806883
C134: Add: Interest Income | E134: From Above | G134: =G118 -> 1.5 | H134: =H118 -> 1.232766466 | I134: 0.2424 | J134: 0.244824 | K134: 0.24727224
C135: Less: Debt Repayment | E135: From Above | G135: =G94 -> 25 | H135: =H94 -> 25 | I135: 25 | J135: 50 | K135: 50
C136: Less: Dividends to Common | E136: Dividend Payout x Net Income | G136: =MAX(G123*G22,0) -> 25.75573576 | H136: =MAX(H123*H22,0) -> 26.57870015 | I136: 21.18475085 | J136: 22.32605356 | K136: 24.34251925
C137: Less: Dividends to Minority | E137: Dividend Payout x Minority Income | G137: =MAX(G123*G25,0) -> 9.128615206 | H137: =MAX(H123*H25,0) -> 9.420298788 | I137: 7.508519289 | J137: 7.913031643 | K137: 8.627728343
C138: Add: Equity Financing | E138: Input | G138: =G23 -> 0 | H138: =H23 -> 0 | I138: 100 | J138: 0 | K138: -200
C139: Net Cash Flow | E139: Cash Flow b/4 fin - Repayment - Div | G139: =G131-G132-G133+G134-G135-G136-G137+G138 -> -14.77810097 | H139: =H131-H132-H133+H134-H135-H136-H137+H138 -> -146.7673124 | I139: 62.42322039 | J139: -7.85213866 | K139: -207.5355637
A141: Shares and EPS
B142: Share Balance
C143: Opening Balance | G143: =F145 -> 40 | H143: =G145 -> 40 | I143: 40 | J143: 50 | K143: 50
C144: Add: New Shares: Equity Financing/Price | G144: =G138/G24 -> 0 | H144: =H138/H24 -> 0 | I144: 10 | J144: 0 | K144: -20
C145: Closing Balance | F145: =F49 -> 40 | G145: =G143+G144 -> 40 | H145: =H143+H144 -> 40 | I145: 50 | J145: 50 | K145: 30
B147: Average Balance | G147: =AVERAGE(F145:G145) -> 40 | H147: =AVERAGE(G145:H145) -> 40 | I147: 45 | J147: 50 | K147: 40
B148: Earnings per Share | G148: =G123/G147 -> 1.287786788 | H148: =H123/H147 -> 1.328935008 | I148: 0.9415444823 | J148: 0.8930421425 | K148: 1.217125963
A151: Balance Sheet
B152: Equity Balance
C153: Opening Balance | G153: =F157 -> 325 | H153: =G157 -> 350.7557358 | I153: 377.3344359 | J153: 498.5191868 | K153: 520.8452403
C154: Add Net Income | G154: =G123 -> 51.51147152 | H154: =H123 -> 53.15740031 | I154: 42.3695017 | J154: 44.65210713 | K154: 48.68503851
C155: Add New Issues | G155: =G138 -> 0 | H155: =H138 -> 0 | I155: 100 | J155: 0 | K155: -200
C156: Less Dividends | G156: =G136 -> 25.75573576 | H156: =H136 -> 26.57870015 | I156: 21.18475085 | J156: 22.32605356 | K156: 24.34251925
C157: Closing Balance | F157: =F46 -> 325 | G157: =G153+G154+G155-G156 -> 350.7557358 | H157: =H153+H154+H155-H156 -> 377.3344359 | I157: 498.5191868 | J157: 520.8452403 | K157: 345.1877596
B159: Minority Balance
C160: Opening Balance | G160: =F164 -> 70 | H160: =G164 -> 71.96616328 | I160: 73.99515071 | J160: 75.61237025 | K160: 77.31671552
C161: Add Net Income | G161: =G122 -> 11.09477848 | H161: =H122 -> 11.44928622 | I161: 9.125738828 | J161: 9.617376919 | K161: 10.48600829
C162: Add New Issues
C163: Less Dividends | G163: =G137 -> 9.128615206 | H163: =H137 -> 9.420298788 | I163: 7.508519289 | J163: 7.913031643 | K163: 8.627728343
C164: Closing Balance | F164: =F45 -> 70 | G164: =G160+G161+G162-G163 -> 71.96616328 | H164: =H160+H161+H162-H163 -> 73.99515071 | I164: 75.61237025 | J164: 77.31671552 | K164: 79.17499547
B166: Cash | E166: From End of Model, Leave until Done | F166: =F106 -> 50 | G166: =G106 -> 35.22189903 | H166: =H106 -> 6.06 | I166: 6.1206 | J166: 6.181806 | K166: 6.24362406
B167: Working Capital | F167: =F60 -> 20 | G167: =G60 -> 37.5 | H167: =H60 -> 37.875 | I167: 38.25375 | J167: 38.6362875 | K167: 39.02265038
B168: Net Plant | E168: Prior Balance + Depreciation | F168: =F68 -> 500 | G168: =G68 -> 500 | H168: =H68 -> 650 | I168: 685 | J168: 666.5 | K168: 649.85
C169: Total Assets | E169: Cash + Plant - Acc Dep | F169: =SUM(F166:F168) -> 570 | G169: =SUM(G166:G168) -> 572.721899 | H169: =SUM(H166:H168) -> 693.935 | I169: 729.37435 | J169: 711.3180935 | K169: 695.1162744
B171: Long-Term Debt | E171: From Debt Balance Above | F171: =F93 -> 175 | G171: =G93 -> 150 | H171: =H93 -> 125 | I171: 100 | J171: 50 | K171: 0
B172: Short-Term Debt | E172: From End of Model, Leave until Done | F172: =F109 -> 0 | G172: =G109 -> 0 | H172: 117.6054134 | I172: 55.24279299 | J172: 63.15613765 | K172: 270.7535194
B173: Minority Equity | E173: Retained Earning-Prior+NI-Div | F173: =F164 -> 70 | G173: =G164 -> 71.96616328 | H173: =H164 -> 73.99515071 | I173: 75.61237025 | J173: 77.31671552 | K173: 79.17499547
B174: Equity | E174: Retained Earning-Prior+NI-Div | F174: =F157 -> 325 | G174: =G157 -> 350.7557358 | H174: =H157 -> 377.3344359 | I174: 498.5191868 | J174: 520.8452403 | K174: 345.1877596
C175: Total Liabilities and Capital | E175: Sum of Above | F175: =SUM(F171:F174) -> 570 | G175: =SUM(G171:G174) -> 572.721899 | H175: =SUM(H171:H174) -> 693.935 | I175: 729.37435 | J175: 711.3180935 | K175: 695.1162744
B177: Difference | E177: Assets = Capital | F177: =F169-F175 -> 0 | G177: =G169-G175 -> 0 | H177: =H169-H175 -> 0 | I177: 0 | J177: 0 | K177: 0
B178: Annual Test | E178: =AND(F178:K178) -> TRUE | F178: =F177=0 -> TRUE | G178: =G177=0 -> TRUE | H178: TRUE | I178: TRUE | J178: TRUE | K178: TRUE
B179: Aggregate Test
B198: Return on Equity
B200: Debt to Capital
B202: Target Debt To Capital
B204: Earnings per Share
B206: DCF
C207: EBITDA
C208: Less: WC Changes
C209: Less: Capital Expenditures
D210: Total
B212: Growth
B213: WACC
B215: Terminal Cash Flow
B216: Total Cash Flow
B217: PV of Free Cash Flow
B218: Net Debt
B219: Equity Value
B221: Value per Share
B223: PE
B235: Fixed Interest Expense
B236: Computed Interest Expesse
B237: Difference | M237: 0 | N237: 0 | O237: 0 | P237: 0 | Q237: 0 | R237: 0 | S237: 0 | T237: 0 | U237: 0 | V237: 0 | W237: 0 | X237: 0 | Y237: 0 | Z237: 0 | AA237: 0 | AB237: 0 | AC237: 0 | AD237: 0 | AE237: 0 | AF237: 0 | AG237: 0 | AH237: 0 | AI237: 0 | AJ237: 0 | AK237: 0 | AL237: 0 | AM237: 0 | AN237: 0 | AO237: 0 | AP237: 0 | AQ237: 0 | AR237: 0 | AS237: 0 | AT237: 0 | AU237: 0 | AV237: 0 | AW237: 0 | AX237: 0 | AY237: 0 | AZ237: 0 | BA237: 0 | BB237: 0 | BC237: 0 | BD237: 0 | BE237: 0 | BF237: 0 | BG237: 0 | BH237: 0 | BI237: 0 | BJ237: 0 | BK237: 0 | BL237: 0 | BM237: 0 | BN237: 0 | BO237: 0 | BP237: 0 | BQ237: 0 | BR237: 0 | BS237: 0 | BT237: 0 | BU237: 0 | BV237: 0 | BW237: 0 | BX237: 0 | BY237: 0 | BZ237: 0 | CA237: 0 | CB237: 0 | CC237: 0 | CD237: 0 | CE237: 0 | CF237: 0 | CG237: 0 | CH237: 0 | CI237: 0 | CJ237: 0 | CK237: 0 | CL237: 0 | CM237: 0 | CN237: 0 | CO237: 0 | CP237: 0 | CQ237: 0 | CR237: 0 | CS237: 0 | CT237: 0 | CU237: 0 | CV237: 0 | CW237: 0 | CX237: 0 | CY237: 0 | CZ237: 0 | DA237: 0 | DB237: 0 | DC237: 0 | DD237: 0 | DE237: 0 | DF237: 0 | DG237: 0 | DH237: 0 | DI237: 0 | DJ237: 0 | DK237: 0 | DL237: 0 | DM237: 0 | DN237: 0 | DO237: 0 | DP237: 0 | DQ237: 0 | DR237: 0 | DS237: 0 | DT237: 0 | DU237: 0 | DV237: 0 | DW237: 0 | DX237: 0 | DY237: 0 | DZ237: 0 | EA237: 0 | EB237: 0 | EC237: 0 | ED237: 0 | EE237: 0 | EF237: 0 | EG237: 0 | EH237: 0 | EI237: 0 | EJ237: 0 | EK237: 0 | EL237: 0 | EM237: 0 | EN237: 0 | EO237: 0 | EP237: 0 | EQ237: 0 | ER237: 0 | ES237: 0 | ET237: 0 | EU237: 0 | EV237: 0 | EW237: 0 | EX237: 0 | EY237: 0 | EZ237: 0 | FA237: 0 | FB237: 0 | FC237: 0 | FD237: 0 | FE237: 0 | FF237: 0 | FG237: 0 | FH237: 0 | FI237: 0 | FJ237: 0 | FK237: 0 | FL237: 0 | FM237: 0 | FN237: 0 | FO237: 0 | FP237: 0 | FQ237: 0 | FR237: 0 | FS237: 0 | FT237: 0 | FU237: 0 | FV237: 0 | FW237: 0 | FX237: 0 | FY237: 0 | FZ237: 0 | GA237: 0 | GB237: 0 | GC237: 0 | GD237: 0 | GE237: 0 | GF237: 0 | GG237: 0 | GH237: 0 | GI237: 0 | GJ237: 0 | GK237: 0 | GL237: 0 | GM237: 0 | GN237: 0 | GO237: 0 | GP237: 0 | GQ237: 0 | GR237: 0 | GS237: 0 | GT237: 0 | GU237: 0 | GV237: 0 | GW237: 0 | GX237: 0 | GY237: 0 | GZ237: 0 | HA237: 0 | HB237: 0 | HC237: 0 | HD237: 0 | HE237: 0 | HF237: 0 | HG237: 0 | HH237: 0 | HI237: 0 | HJ237: 0 | HK237: 0 | HL237: 0 | HM237: 0 | HN237: 0 | HO237: 0 | HP237: 0 | HQ237: 0 | HR237: 0 | HS237: 0 | HT237: 0 | HU237: 0 | HV237: 0 | HW237: 0 | HX237: 0 | HY237: 0 | HZ237: 0 | IA237: 0 | IB237: 0 | IC237: 0 | ID237: 0 | IE237: 0 | IF237: 0 | IG237: 0 | IH237: 0 | II237: 0 | IJ237: 0 | IK237: 0 | IL237: 0 | IM237: 0 | IN237: 0 | IO237: 0 | IP237: 0 | IQ237: 0 | IR237: 0 | IS237: 0 | IT237: 0 | IU237: 0 | IV237: 0
B239: Fixed Interest Income
B240: Computed Interest Income
B241: Difference | M241: 0 | N241: 0 | O241: 0 | P241: 0 | Q241: 0 | R241: 0 | S241: 0 | T241: 0 | U241: 0 | V241: 0 | W241: 0 | X241: 0 | Y241: 0 | Z241: 0 | AA241: 0 | AB241: 0 | AC241: 0 | AD241: 0 | AE241: 0 | AF241: 0 | AG241: 0 | AH241: 0 | AI241: 0 | AJ241: 0 | AK241: 0 | AL241: 0 | AM241: 0 | AN241: 0 | AO241: 0 | AP241: 0 | AQ241: 0 | AR241: 0 | AS241: 0 | AT241: 0 | AU241: 0 | AV241: 0 | AW241: 0 | AX241: 0 | AY241: 0 | AZ241: 0 | BA241: 0 | BB241: 0 | BC241: 0 | BD241: 0 | BE241: 0 | BF241: 0 | BG241: 0 | BH241: 0 | BI241: 0 | BJ241: 0 | BK241: 0 | BL241: 0 | BM241: 0 | BN241: 0 | BO241: 0 | BP241: 0 | BQ241: 0 | BR241: 0 | BS241: 0 | BT241: 0 | BU241: 0 | BV241: 0 | BW241: 0 | BX241: 0 | BY241: 0 | BZ241: 0 | CA241: 0 | CB241: 0 | CC241: 0 | CD241: 0 | CE241: 0 | CF241: 0 | CG241: 0 | CH241: 0 | CI241: 0 | CJ241: 0 | CK241: 0 | CL241: 0 | CM241: 0 | CN241: 0 | CO241: 0 | CP241: 0 | CQ241: 0 | CR241: 0 | CS241: 0 | CT241: 0 | CU241: 0 | CV241: 0 | CW241: 0 | CX241: 0 | CY241: 0 | CZ241: 0 | DA241: 0 | DB241: 0 | DC241: 0 | DD241: 0 | DE241: 0 | DF241: 0 | DG241: 0 | DH241: 0 | DI241: 0 | DJ241: 0 | DK241: 0 | DL241: 0 | DM241: 0 | DN241: 0 | DO241: 0 | DP241: 0 | DQ241: 0 | DR241: 0 | DS241: 0 | DT241: 0 | DU241: 0 | DV241: 0 | DW241: 0 | DX241: 0 | DY241: 0 | DZ241: 0 | EA241: 0 | EB241: 0 | EC241: 0 | ED241: 0 | EE241: 0 | EF241: 0 | EG241: 0 | EH241: 0 | EI241: 0 | EJ241: 0 | EK241: 0 | EL241: 0 | EM241: 0 | EN241: 0 | EO241: 0 | EP241: 0 | EQ241: 0 | ER241: 0 | ES241: 0 | ET241: 0 | EU241: 0 | EV241: 0 | EW241: 0 | EX241: 0 | EY241: 0 | EZ241: 0 | FA241: 0 | FB241: 0 | FC241: 0 | FD241: 0 | FE241: 0 | FF241: 0 | FG241: 0 | FH241: 0 | FI241: 0 | FJ241: 0 | FK241: 0 | FL241: 0 | FM241: 0 | FN241: 0 | FO241: 0 | FP241: 0 | FQ241: 0 | FR241: 0 | FS241: 0 | FT241: 0 | FU241: 0 | FV241: 0 | FW241: 0 | FX241: 0 | FY241: 0 | FZ241: 0 | GA241: 0 | GB241: 0 | GC241: 0 | GD241: 0 | GE241: 0 | GF241: 0 | GG241: 0 | GH241: 0 | GI241: 0 | GJ241: 0 | GK241: 0 | GL241: 0 | GM241: 0 | GN241: 0 | GO241: 0 | GP241: 0 | GQ241: 0 | GR241: 0 | GS241: 0 | GT241: 0 | GU241: 0 | GV241: 0 | GW241: 0 | GX241: 0 | GY241: 0 | GZ241: 0 | HA241: 0 | HB241: 0 | HC241: 0 | HD241: 0 | HE241: 0 | HF241: 0 | HG241: 0 | HH241: 0 | HI241: 0 | HJ241: 0 | HK241: 0 | HL241: 0 | HM241: 0 | HN241: 0 | HO241: 0 | HP241: 0 | HQ241: 0 | HR241: 0 | HS241: 0 | HT241: 0 | HU241: 0 | HV241: 0 | HW241: 0 | HX241: 0 | HY241: 0 | HZ241: 0 | IA241: 0 | IB241: 0 | IC241: 0 | ID241: 0 | IE241: 0 | IF241: 0 | IG241: 0 | IH241: 0 | II241: 0 | IJ241: 0 | IK241: 0 | IL241: 0 | IM241: 0 | IN241: 0 | IO241: 0 | IP241: 0 | IQ241: 0 | IR241: 0 | IS241: 0 | IT241: 0 | IU241: 0 | IV241: 0
B244: Taget
B246: Actual

Sheet Verification
A1: Verification

Sheet Exercise without Titles
A1: Exercise without Titles
A2: Year | F2: 0 | G2: 1 | H2: 2 | I2: 3 | J2: 4 | K2: 5 | L2: 6
A4: Assumptions
B5: Operating
C6: EBITDA | F6: 1 | G6: =INDEX(G7:G9,$F$6) -> 200 | H6: 300 | I6: 400 | J6: 450 | K6: 450 | L6: 450
D7: Base Case | G7: 200 | H7: 300 | I7: 400 | J7: 450 | K7: 450 | L7: 450
D8: Low Case | G8: 150 | H8: 200 | I8: 300 | J8: 300 | K8: 300 | L8: 300
D9: High Case | G9: 200 | H9: 350 | I9: 500 | J9: 650 | K9: 650 | L9: 650
C10: Depreciation Rate | G10: 0.1 | H10: 0.1 | I10: 0.1 | J10: 0.1 | K10: 0.1 | L10: 0.1
C11: Capital Expenditures | G11: 400 | H11: 400 | I11: 200 | J11: 50 | K11: 50 | L11: 50
C12: Working Captial Percent of EBITDA | G12: 0.25 | H12: =G12 -> 0.25 | I12: =H12 -> 0.25 | J12: =I12 -> 0.25 | K12: =J12 -> 0.25 | L12: =K12 -> 0.25
C13: Minimum Cash Balance as Percent of EBITDA | G13: 0.02 | H13: 0.02 | I13: 0.02 | J13: 0.02 | K13: 0.02 | L13: 0.02
B15: Financing
C16: Interest Income Rate | G16: 0.03 | H16: 0.035 | I16: 0.04 | J16: 0.04 | K16: 0.04 | L16: 0.04
C17: Interest Expense Rate | G17: 0.05 | H17: 0.055 | I17: 0.06 | J17: 0.06 | K17: 0.06 | L17: 0.06
C18: Minimum Cash Balance | G18: 100 | H18: 100 | I18: 100 | J18: 100 | K18: 100 | L18: 100
C19: Dividend Payout Ratio | G19: 0.5 | H19: 0.5 | I19: 0.5 | J19: 0.5 | K19: 0.5 | L19: 0.5
B21: Long-Term Debt
C22: Repayment | G22: 60 | H22: 60 | I22: 60 | J22: 60 | K22: 60
C23: Interest Rate on Long-term Debt | G23: 0.065 | H23: 0.065 | I23: 0.065 | J23: 0.065 | K23: 0.065
A25: Initial Balance Sheet
B26: Cash | F26: 100
B27: Plant Property and Equipment | F27: 1300
B28: Accumulated Depreciation | F28: 300
C29: Total Assets | F29: =F26+F27-F28 -> 1100
B31: Long-Term Debt | F31: 300
B32: Short-Term Debt | F32: 200
B33: Equity | F33: 600
C34: Total Liabilities and Capital | F34: =SUM(F31:F33) -> 1100
